{"text_format":"1","workbook":"xlsx","n_sheets":6,"sheets":["Start","Vorprüfung","Grundlagenprüfung","Detailprüfung","Auswertung","Daten_Auswertung"],"not_rendered":{"charts":1,"images":4,"macros":1,"external_links":0,"defined_names":3,"comments":0,"pivot_tables":0},"unopened":[],"bounds":{"document_bytes":16777216,"sheet_cells":100000,"rows_first":2000,"rows_last":500,"rows_between":2000,"halvings":0,"cell_chars":16384,"cell_head_chars":4096},"cells_cut":0,"cells_raw":0,"read":"whole","date_system":"1900"}

{"sheet":"Start","index":0,"n_rows":20,"n_cols":2,"rows_kept":20,"cut":false,"hidden":false,"merged":[[19,1,19,6]]}
[]
[]
[]
[]
[]
[]
[null,"InfraCheck"]
[]
[null,"Ein Analyse-Tool für Gemeinden zur Beurteilung von Finanzierungsanfragen im Tourismus"]
[]
[]
[]
[]
[]
[null,"© Institut für Tourismus und Freizeit (ITF)| Zentrum für Verwaltungsmanagement (ZVM) der HTW Chur"]
[]
[null,"Version 1.0, 23.05.2019"]
[]
[]
[null,"Das Projekt InfraTour wurde finanziell unterstützt durch den Förderverein der HTW Chur, das Amt für Wirtschaft und Tourismus Graubünden sowie den Gemeinden Arosa, Flims, Scuol, Surses, St. Moritz und Vals."]

{"sheet":"Vorprüfung","index":1,"n_rows":31,"n_cols":7,"rows_kept":31,"cut":false,"hidden":false,"merged":[[8,3,8,5]]}
[]
[]
[]
[]
[]
[]
[null,"Vorprüfung"]
[]
[null,"Projekt:",null,"[Name einfügen]"]
[]
[null,"Fachkompetenz und Ressourcen",null,null,null,"Ja","Nein"]
[]
[null,1,null,"Verfügen die Gemeindebehörden und die Gemeindeverwaltung über die notwendigen Fachkenntnisse, um das Projekt erfolgreich zu begleiten und umzusetzen?"]
[]
[null,2,null,"Verfügen die Gemeindebehörden und die Gemeindeverwaltung über die notwendigen Ressourcen, um das Projekt erfolgreich zu begleiten und umzusetzen?"]
[]
[null,"Vollständigkeit"]
[]
[null,3,null,"Verfügt die Gemeindeexekutive über die erforderlichen Unterlagen, um zu entscheiden (inkl. Businessplan, externe technische/juristische Gutachten)?"]
[]
[null,null,3.1,"Ist das Projekt aus finanzieller Sicht ausreichend dokumentiert?"]
[]
[null,null,3.2,"Ist das Projekt aus technischer Sicht ausreichend dokumentiert (z.B. Planungsunterlagen, Machbarkeitsstudien)?"]
[]
[null,null,3.3,"Liegen die kantonalen Nachweise für das Projekt (z.B. Umweltverträglichkeitsprüfung) vor?"]
[]
[null,null,3.4,"Wurden alle notwendigen übergeordneten Auflagen geprüft (Bund, Kantone)?"]
[]
[null,"Motivation"]
[]
[null,4,null,"Handelt es sich mehrheitlich um eine Massnahme zur Förderung des Tourismus und nicht um eine reine Angebotserweiterung für die lokale Bevölkerung?"]

{"sheet":"Grundlagenprüfung","index":2,"n_rows":25,"n_cols":8,"rows_kept":25,"cut":false,"hidden":false,"merged":[[8,3,8,6],[26,2,28,7]]}
[]
[]
[]
[]
[]
[]
[null,"Grundlagenprüfung "]
[]
[null,"Projekt:",null,{"$f":"Vorprüfung!D9","v":"[Name einfügen]"}]
[]
[null,"Rechtliche Grundlage (Legalitätsprinzip)",null,null,null,"Ja",null,"Nein"]
[]
[null,5,null,"Ist die Gemeinde zuständig und verfügt sie über die erforderliche Rechtsgrundlage, um tätig zu werden?"]
[]
[null,null,5.0999999999999996]
[]
[null,"Öffentliches Interesse"]
[]
[null,6,null,"Besteht eindeutig ein öffentliches Interesse an der geplanten Massnahme und stehen keine Partikularinteressen im Vordergrund?"]
[]
[null,null,6.1,"Profitieren weitete Teile der Bevölkerung von der geplanten Massnahme (touristische Infrastruktur)?"]
[]
[null,null,6.2]
[]
[null,null,6.3]

{"sheet":"Detailprüfung","index":3,"n_rows":146,"n_cols":16,"rows_kept":146,"cut":false,"hidden":false,"merged":[[82,16,84,28],[86,16,94,28],[143,16,145,28],[103,16,105,28],[107,16,109,28],[115,16,125,28],[133,16,141,28],[127,16,129,28],[111,15,111,17],[111,18,111,20],[111,21,111,23],[111,24,111,26],[111,27,111,28],[14,16,24,28],[100,1,100,3],[111,1,111,3],[8,3,8,13],[100,4,100,6],[100,7,100,9],[100,10,100,12],[111,4,111,6],[111,7,111,9],[111,10,111,12],[28,16,36,28],[40,16,48,28],[96,16,98,28],[52,16,58,28],[60,16,72,28],[74,16,80,28]]}
[]
[]
[]
[]
[]
[]
[null,"Detailprüfung",null,null,null,null,null,null,null,null,null,null,null,null,null,"Bemerkungen"]
[]
[null,"Projekt:",null,{"$f":"Vorprüfung!D9","v":"[Name einfügen]"},null,null,null,null,null,null,null,null,null,null,null,"Hier können Bemerkungen angebracht werden, wie Sie zu den entsprechenden Einschätzungen gekommen sind "]
[]
[null,"A. Eignung ",null,null,null,null,null,null,null,null,null,null,null,null,null,"Eignung "]
[]
[null,"Regionalwirtschaftliche Effekte",null,null,null,"- -",null,"-",null,"=",null,"+",null,"++",null,"Regionalwirtschaftliche Effekte"]
[]
[null,7,null,"Ist zu erwarten, dass die geplante Massnahme einen wichtigen Beitrag zum Erhalt oder zur Steigerung der Wettbewerbsfähigkeit des touristischen Gesamtsystems leistet?",null,null,null,null,null,null,null,null,null,null,null,7]
[]
[null,null,7.1,"Ist das Projekt für das lokale und regionale Tourismussystem relevant?"]
[]
[null,null,7.2,"Würde das Projekt nicht realisiert, wäre mit massgeblichen negativen Folgen für das Tourismussystem zu rechnen (Störung/Unterbruch der Leistungskette)?"]
[]
[null,null,7.3,"Hat das Projekt einen massgeblich positiven Einfluss auf die touristische Wertschöpfung der Gemeinde?"]
[]
[null,null,7.4,"Hat das Projekt einen massgeblich positiven Einfluss auf die touristische Wertschöpfung der Destination/Region?"]
[]
[null,null,7.5]
[]
[null,"Strategischer Fit",null,null,null,"- -",null,"-",null,"=",null,"+",null,"++",null,"Strategischer Fit"]
[]
[null,8,null,"Besteht eine Abstimmung mit der kommunalen und regionalen Infrastrukturplanung?",null,null,null,null,null,null,null,null,null,null,null,8]
[]
[null,null,8.1,"Ist das Projekt mit dem Leitbild und der Tourismusstrategie der Gemeinde kompatibel?"]
[]
[null,null,8.1999999999999993,"Ist das Projekt mit dem Leitbild und der Tourismusstrategie der Destination/Region kompatibel?"]
[]
[null,null,8.3000000000000007,"Ist es auf das regionale Entwicklungskonzept abgestimmt?"]
[]
[null,null,8.4]
[]
[null,"Marktneutralität",null,null,null,"- -",null,"-",null,"=",null,"+",null,"++",null,"Marktneutralität"]
[]
[null,9,null,"Ist gewährleistet, dass die geplanten Massnahmen nicht zu einer massgeblichen Marktverzerrung führen?",null,null,null,null,null,null,null,null,null,null,null,9]
[]
[null,null,9.1,"Wird mit den geplanten Massnahmen ein bestehendes privates Angebot in der Gemeinde massgeblich konkurriert?"]
[]
[null,null,9.1999999999999993,"Wird mit den geplanten Massnahmen ein bestehendes privates Angebot in der Region massgeblich konkurriert?"]
[]
[null,null,9.3000000000000007,"Wird mit den geplanten Massnahmen ein wirksamer Wettbewerb unterbunden?"]
[]
[null,null,9.4]
[]
[null,"Projektqualität",null,null,null,"- -",null,"-",null,"=",null,"+",null,"++",null,"Projektqualität"]
[]
[null,10,null,"Ist die Gesamtfinanzierung sichergestellt?",null,null,null,null,null,null,null,null,null,null,null,10]
[]
[null,null,10.1,"Liegen allfällige Finanzierungszusagen weiterer öffentlicher Institutionen vor (z.B. NRP-Beiträge von Bund/Kanton, andere Gemeinden, DMO)?"]
[]
[null,null,10.199999999999999,"Ist gewährleistet, dass die privaten Mittel vorhanden sind und vorrangig eingesetzt werden?"]
[]
[null,null,10.3]
[]
[null,11,null,"Beruht die vorliegende Planung auf realistischen Annahmen und auf einem soliden Businessplan?",null,null,null,null,null,null,null,null,null,null,null,11]
[]
[null,null,11.1,"Verfügt das Projekt mit seinen touristischen Produkten und Dienstleistungen über ein Alleinstellungsmerkmal (USP = unique selling proposition)?"]
[]
[null,null,11.2,"Werden das Projekt und die Annahmen (finanzbezogen) verständlich und nachvollziehbar dargestellt?"]
[]
[null,null,11.3,"Sind die finanziellen Verpflichtungen der Partner klar und eindeutig beschrieben?"]
[]
[null,null,11.4,"Ist die Nachfrage (Menge, Preis) für das neue touristische Angebot genügend gross und realistisch eingeschätzt?"]
[]
[null,null,11.5,"Hat das Projekt Aussicht auf wirtschaftlichen Erfolg?"]
[]
[null,null,11.6]
[]
[null,12,null,"Sind die vorgesehenen finanziellen Massnahmen nachhaltig?",null,null,null,null,null,null,null,null,null,null,null,12]
[]
[null,null,12.1,"Muss mit zusätzlichen Investitionsbeiträgen gerechnet werden, die nicht in der Planung berücksichtigt sind?"]
[]
[null,null,12.2,"Muss mit zusätzlichen Betriebsbeiträgen gerechnet werden, die nicht in der Planung berücksichtigt sind?"]
[]
[null,null,12.3]
[]
[null,13,null,"Ist das Projekt professionell gemanagt und zweckmässig organisiert (z.B. Rechtsform)?",null,null,null,null,null,null,null,null,null,null,null,13]
[]
[null,null,13.1]
[]
[null,14,null,"Verfügt die Gegenpartei über die erforderlichen Kompetenzen auf operativer und strategischer Ebene?",null,null,null,null,null,null,null,null,null,null,null,14]
[]
[null,null,14.1,"Hat die Gegenpartei bereits ähnliche Projekte oder andere Projekte erfolgreich umgesetzt?"]
[]
[null,null,14.2,"Verfügt die Gegenpartei über fachliche Expertise im Bereich Tourismus?"]
[]
[null,null,14.3,"Ist die Gegenpartei vertrauenswürdig?"]
[]
[null,null,14.4]
[]
[null,15,null,"Besteht ein nicht vertretbares Reputationsrisiko (z.B. potenzielle negative Effekte auf Umwelt und Gesellschaft)?",null,null,null,null,null,null,null,null,null,null,null,15]
[]
[null,null,15.1]
[]
[null,"B. Notwendigkeit der Gemeindebeteiligung",null,null,null,null,null,null,null,null,null,null,null,null,null,"Notwendigkeit der Gemeindebeteiligung"]
[null,null,null,null,null,"- -",null,"-",null,"=",null,"+",null,"++"]
[]
[null,16,null,"Käme das Projekt in seinen wesentlichen Teilen auch ohne die geplante Massnahme der Gemeinde zustande?",null,null,null,null,null,null,null,null,null,null,null,16]
[]
[null,null,16.100000000000001]
[]
[null,17,null,"Gibt es Projektalternativen, die einen geringen Mitteleinsatz der Gemeinde erfordern oder mit tieferen Risiken verbunden sind?",null,null,null,null,null,null,null,null,null,null,null,17]
[]
[null,null,17.100000000000001]
[]
[null,"C. Angemessenheit",null,null,null,null,null,null,null,null,null,null,null,null,null,"Angemessenheit"]
[]
[null,"Finanzielle Tragbarkeit",null,null,null,"- -",null,"-",null,"=",null,"+",null,"++",null,"Finanzielle Tragbarkeit"]
[]
[null,18,null,"Steht das geplante finanzielle Engagement in einem angemessenen Verhältnis zur Finanzkraft und zur Risikofähigkeit der Gemeinde?",null,null,null,null,null,null,null,null,null,null,null,18]
[]
[null,null,18.100000000000001,"Ist die Gemeinde in der Lage, die finanziellen Lasten zu tragen?"]
[]
[null,null,18.2,"Kann das Projekt realisiert werden, ohne dass dadurch andere kommunale Projekte tangiert werden (z.B. Zurückstellung oder Nicht-Realisation anderer Projekte)?"]
[]
[null,null,18.3,"Ist die Investitionsfähigkeit der Gemeinde durch die Realisierung des Projekts weiterhin gegeben?"]
[]
[null,null,18.399999999999999,"Ist die Verschuldung der Gemeinde durch die Realisierung des Projekts weiterhin in einem vertretbaren Rahmen?"]
[]
[null,null,18.5]
[]
[null,19,null,"Rechtfertigt das verfolgte Ziel den Mitteleinsatz der Gemeinde und die einzugehenden Risiken?",null,null,null,null,null,null,null,null,null,null,null,19]
[]
[null,null,19.100000000000001]
[]
[null,"Risikoexposition",null,null,null,"- -",null,"-",null,"=",null,"+",null,"++"]
[]
[null,20,null,"Besteht eine angemessene Risikoverteilung zwischen der Gemeinden und externen Partnern?",null,null,null,null,null,null,null,null,null,null,null,20]
[]
[null,null,20.100000000000001,"Sind die Belastungen sowie die Rechte und Pflichten zwischen den Projektpartnern angemessen verteilt?"]
[]
[null,null,20.2,"Ist die Finanzierung/Beteiligung ausreichend breit abgestützt (Einbezug weiterer Gemeinden, Kanton/Bund oder private Investoren notwendig)?"]
[]
[null,null,20.3,"Hat die Gemeinde genügend Einfluss auf strategische Entscheide des Projekts (entsprechend ihrer Höhe der Beteiligung)?"]
[]
[null,null,20.399999999999999]
[]
[null,21,null,"Wurden die erforderlichen Massnahmen ergriffen, um die Risiken für die Gemeinde so gering wie möglich zu halten (z.B. Besicherung, vorgängige Einzahlung externer Mittel, etc.)?",null,null,null,null,null,null,null,null,null,null,null,21]
[]
[null,null,21.1]

{"sheet":"Auswertung","index":4,"n_rows":51,"n_cols":3,"rows_kept":51,"cut":false,"hidden":false,"merged":[[51,1,56,7],[17,1,19,7],[15,1,15,7],[10,1,10,7],[12,1,13,7]]}
[]
[]
[]
[]
[]
[]
[null,"Auswertung"]
[]
[null,"Projekt:",{"$f":"Vorprüfung!D9","v":"[Name einfügen]"}]
[]
[null,"Vorprüfung"]
[]
[null,{"$f":"Daten_Auswertung!J12","v":"Gemäss Ihren Angaben, sind entweder die Fachkompetenz rsp. Ressourcen, die Vollständigkeit oder die Motivation für das Projekt nicht ausreichend erfüllt. Dies ist für eine Investition jedoch nötig. Eine Detailprüfung erübrigt sich."}]
[]
[]
[null,"Grundlagenprüfung"]
[]
[null,{"$f":"Daten_Auswertung!J15","v":"Bitte beachten Sie, dass gemäss Ihren Angaben, entweder das Öffentliche Interesse oder die Rechtliche Grundlage nicht gegeben sind. Dies ist für eine Investition jedoch zwingend nötig. Eine Detailprüfung erübrigt sich."}]
[]
[]
[]
[null,"Detailprüfung"]
[]
[]
[]
[]
[]
[]
[]
[]
[]
[]
[]
[]
[]
[]
[]
[]
[]
[]
[]
[]
[]
[]
[]
[]
[]
[]
[null,"Zusammenfassung"]
[]
[null,"Fassen Sie die für das Projekt wichtigsten drei positiven und negativen Punkte kurz zusammen"]

{"sheet":"Daten_Auswertung","index":5,"n_rows":32,"n_cols":10,"rows_kept":32,"cut":false,"hidden":true,"merged":[]}
[]
[]
[]
[]
[]
[]
[]
["Musskriterien ","Ja/Nein",null,null,null,null,"Punkte"]
[1,2]
[2,1,null,null,null,"Fachkompetenz und Ressourcen",{"$f":"SUM(B9:B10)","v":3}]
[3,2,null,null,null,"Vollständigkeit",{"$f":"B11","v":2}]
[4,1,null,null,null,"Motivation",{"$f":"B12","v":1},null,{"$f":"SUM(G10:G12)","v":6},{"$f":"IF(I12<8,\"Gemäss Ihren Angaben, sind entweder die Fachkompetenz rsp. Ressourcen, die Vollständigkeit oder die Motivation für das Projekt nicht ausreichend erfüllt. Dies ist für eine Investition jedoch nötig. Eine Detailprüfung erübrigt sich.\",\"Sämtlich Muss-Kriterien der Vorprüfung sind erüllt, womit die Grundvoraussetzung erfüllt.\")","v":"Gemäss Ihren Angaben, sind entweder die Fachkompetenz rsp. Ressourcen, die Vollständigkeit oder die Motivation für das Projekt nicht ausreichend erfüllt. Dies ist für eine Investition jedoch nötig. Eine Detailprüfung erübrigt sich."}]
[]
[5,1,null,null,null,{"$f":"Grundlagenprüfung!$B$11","v":"Rechtliche Grundlage (Legalitätsprinzip)"},{"$f":"B14","v":1}]
[6,1,null,null,null,{"$f":"Grundlagenprüfung!$B$17","v":"Öffentliches Interesse"},{"$f":"B15","v":1},null,{"$f":"SUM(G14:G15)","v":2},{"$f":"IF(I15<4,\"Bitte beachten Sie, dass gemäss Ihren Angaben, entweder das Öffentliche Interesse oder die Rechtliche Grundlage nicht gegeben sind. Dies ist für eine Investition jedoch zwingend nötig. Eine Detailprüfung erübrigt sich.\",\"Sowohl das Öffentliche Interesse als auch auch die rechltiche Grundlage sind erfüllt, womit die Grundvoraussetzungen erfüllt sind.\")","v":"Bitte beachten Sie, dass gemäss Ihren Angaben, entweder das Öffentliche Interesse oder die Rechtliche Grundlage nicht gegeben sind. Dies ist für eine Investition jedoch zwingend nötig. Eine Detailprüfung erübrigt sich."}]
[]
["Kannkriterien","1/2/3/4/5",null,null,null,null,"Punkte"]
[7,5,null,null,null,null,{"$f":"(B18-1)*25","v":100},null,"Regionalwirtschaftliche Effekte",{"$f":"100/5*B18","v":100}]
[8,0,null,null,null,null,{"$f":"(B19-1)*25","v":-25},null,"Strategischer Fit",{"$f":"G19","v":-25}]
[9,1,null,null,null,null,0,null,"Marktneutralität",{"$f":"G20","v":0}]
[10,1,null,null,null,null,0,null,"Projektqualität",{"$f":"AVERAGE(G21:G26)","v":33.333333333333336}]
[11,1,null,null,null,null,0,null,"Notwendigkeit der Gemeindebeteiligung",{"$f":"AVERAGE(G27:G28)","v":62.5}]
[12,5,null,null,null,null,100,null,"Finanzielle Tragbarkeit",{"$f":"AVERAGE(G29:G30)","v":25}]
[13,1,null,null,null,null,0,null,"Risikoexposition",{"$f":"AVERAGE(G31:G32)","v":25}]
[14,1,null,null,null,null,0]
[15,5,null,null,null,null,100]
[16,5,null,null,null,null,100]
[17,2,null,null,null,null,25]
[18,2,null,null,null,null,25]
[19,2,null,null,null,null,25]
[20,3,null,null,null,null,50]
[21,1,null,null,null,null,0]